Cogmind - Beta 9.1 @@@ ROGUE MODE // 2019.11.10 @ 12:13:01 Player: Rilt Result: Destroyed by G-47 Trooper with Particle Gun Performance ------------- Evolutions (3) 1500 Regions Visited (8) 1600 Robots Destroyed (20) 100 Value Destroyed (603) 603 Prototype IDs (2) 40 Alien Tech Used (0) 0 Bonus (987) 987 TOTAL SCORE: 4830 Bonus ------- Pacifist 200 High Alert Combat Kills 12 Follower Combat Kills 183 Entered Garrisons 200 Used RIF Installer 500 Friendly Fire -108 Cogmind --------- Core Integrity 0/700 Matter 300/300 Energy 100/100 System Corruption 0% Temperature Cool (9) Location -7/Lower Caves Parts ------- Power (1) Propulsion (5) Improved Treads Utility (3) Weapon (4) Axe Inventory (4) Micro Fission Core Medium Storage Unit Peak State ------------ Power Improved Ion Engine Propulsion Aluminum Leg Aluminum Leg Aluminum Leg Aluminum Leg Improved Aluminum Leg Utility Small Storage Unit Kinecellerator Improved Propulsion Shielding Weapon Minigun Minigun Gauss Rifle Advanced Assault Cannon Inventory Ion Engine Weapon Cycler Improved Medium Armor Plating Improved Shield Generator Autogun Axe [Rating: 31] Favorites ----------- Power Improved Ion Engine Engine Improved Ion Engine Power Core Micro Fission Core Propulsion Aluminum Leg Treads Improved Treads Leg Aluminum Leg Utility Small Storage Unit Device Kinecellerator Storage Small Storage Unit Protection Improved Propulsion Shielding Weapon Autogun Energy Gun Medium Laser Ballistic Gun Autogun Ballistic Cannon Advanced Assault Cannon Slashing Weapon Axe Build | -11 -10 -10 -9 -9 -9 -9 -7 -7 ------- Run | Scr Mat Min Mat Sto Gar Rec Fac Low Slots Evolved 6 | . . . 2 . . . 4 . Power . | . . . . . . . . . Propulsion 3 | . . . 1 . . . 2 . Utility 1 | . . . . . . . 1 . Weapon 2 | . . . 1 . . . 1 . Parts Attached 40 | 5 1 . 8 . 3 1 10 12 Power 5 | 1 . . 1 . 1 . . 2 Engine 4 | 1 . . 1 . 1 . . 1 Core 1 | . . . . . . . . 1 Reactor . | . . . . . . . . . Propulsion 9 | 1 1 . 2 . 1 . 2 2 Treads 2 | . . . 1 . . . . 1 Leg 7 | 1 1 . 1 . 1 . 2 1 Wheel . | . . . . . . . . . Hover . | . . . . . . . . . Flight . | . . . . . . . . . Utility 10 | 1 . . 1 . . . 2 6 Device 3 | . . . . . . . 1 2 Storage 4 | 1 . . . . . . . 3 Processor . | . . . . . . . . . Hackware . | . . . . . . . . . Protection 3 | . . . 1 . . . 1 1 Artifact . | . . . . . . . . . Weapon 16 | 2 . . 4 . 1 1 6 2 Energy Gun 2 | 2 . . . . . . . . Energy Cannon . | . . . . . . . . . Ballistic Gun 11 | . . . 4 . 1 . 5 1 Ballistic Cannon 2 | . . . . . . 1 1 . Launcher . | . . . . . . . . . Special Weapon . | . . . . . . . . . Impact Weapon . | . . . . . . . . . Slashing Weapon 1 | . . . . . . . . 1 Piercing Weapon . | . . . . . . . . . Special Melee Weapon . | . . . . . . . . . Unidentified Prototypes . | . . . . . . . . . Parts Lost 18 | . . . . . . . . 18 Power 2 | . . . . . . . . 2 Propulsion 6 | . . . . . . . . 6 Utility 5 | . . . . . . . . 5 Weapon 5 | . . . . . . . . 5 Highest Loss Streak 17 | . . . . . . . . 17 Average Slot Usage (%) 75 | . 85 85 88 100 100 100 99 31 Engine 7 | . 14 14 11 11 11 11 7 1 Treads 1 | . . . 4 . . . . 5 Leg 26 | . 28 28 28 33 33 33 38 9 Device 2 | . . . . . . . 6 1 Storage 7 | . 14 14 11 11 11 11 7 1 Protection 4 | . . . 1 11 11 11 7 . Energy Gun 4 | . 28 28 15 . . . . . Ballistic Gun 16 | . . . 17 33 33 28 27 2 Ballistic Cannon 1 | . . . . . . 4 2 1 Slashing Weapon 1 | . . . . . . . . 5 Naked Turns 34 | . . . . . . . . 34 Heaviest Build 39 | 11 11 11 27 27 29 31 36 39 Greatest Support 53 | 10 20 20 33 33 33 33 53 53 Greatest Overweight (x) 10 | 2 1 . . . . . . 10 Average Overweight (x) . | 1 . . . . . . . . Largest Inventory Capacity 8 | 6 6 6 6 6 6 6 6 8 Average Capacity 5 | 5 6 6 6 6 6 6 6 4 Most Carried 6 | 5 5 5 6 6 6 6 6 6 Average Carried 4 | 3 4 4 5 6 5 6 5 2 Final Capacity 6 | 6 6 6 6 6 6 6 6 4 Final Carried 6 | 5 4 5 6 6 6 6 6 2 Class Distribution -------------------- 41% | Mutant 28% | Scavenger-Gunner 22% | Tank 5% | Gunner Dominant Class ---------------- Mutant | -10/Materials Mutant | -10/Mines Gunner | -9/Materials Tank | -9/Storage Tank | -9/Garrison Tank | -9/Recycling Scavenger-Gunner | -7/Factory Mutant | -7/Lower Caves Resources | -11 -10 -10 -9 -9 -9 -9 -7 -7 ----------- Run | Scr Mat Min Mat Sto Gar Rec Fac Low Matter Collected 1226 | 250 . . 86 . 414 79 176 221 Remotely . | . . . . . . . . . Salvage Created 708 | . . . . . 435 37 . 236 Parts 27 | . . . . . 17 2 . 8 Haulers Intercepted . | . . . . . . . . . Recyclers Shooed 1 | . . . . . . . 1 . Parts Field Recycled . | . . . . . . . . . Retrieved Matter . | . . . . . . . . . Parts Self-Destructed 6 | . . . . . . . . 6 Prevented . | . . . . . . . . . Kills | -11 -10 -10 -9 -9 -9 -9 -7 -7 ------- Run | Scr Mat Min Mat Sto Gar Rec Fac Low Combat Hostiles Destroyed 20 | . . . . . 11 3 . 6 Melee 3 | . . . . . . . . 3 Guns 16 | . . . . . 11 3 . 2 Cannons 1 | . . . . . . . . 1 Classes Destroyed 5 | . . . . . 3 1 . 1 Drone 3 | . . . . . . 3 . . Swarmer 5 | . . . . . 2 . . 3 Grunt 10 | . . . . . 8 . . 2 Brawler 1 | . . . . . 1 . . . Sentry 1 | . . . . . . . . 1 Best Kill Streak 8 | . . . . . 8 1 . 2 Combat Bots Only 8 | . . . . . 8 1 . 2 Max Kills in Single Turn 2 | . . . . . 1 1 . 2 Gunslinging . | . . . . . . . . . Exploded . | . . . . . . . . . Melee 1 | . . . . . . . . 1 Uniques/NPCs Destroyed . | . . . . . . . . . Combat | -11 -10 -10 -9 -9 -9 -9 -7 -7 -------- Run | Scr Mat Min Mat Sto Gar Rec Fac Low Damage Taken 3106 | . . . 18 . 509 . 33 2546 Core 744 | . . . 18 . 20 . 6 700 Absorbed by Shields 43 | . . . . . 21 . . 22 Core Remaining (%) 96 | 100 . 100 . . . 90 . . Volleys Fired 59 | . . . 2 . 34 7 5 11 Largest 4 | . . . 3 . 3 3 4 4 Hottest 126 | . . . 120 . 66 85 103 126 Shots Fired 190 | . . . 6 . 102 21 20 41 Gun 177 | . . . 6 . 102 19 20 30 Cannon 13 | . . . . . . 2 . 11 Launcher . | . . . . . . . . . Special . | . . . . . . . . . Kinetic 186 | . . . 2 . 102 21 20 41 Thermal 4 | . . . 4 . . . . . Explosive . | . . . . . . . . . Electromagnetic . | . . . . . . . . . Robot Hit Streak 6 | . . . 4 . 6 3 5 5 Robot Miss Streak 8 | . . . 1 . 6 6 2 8 Penetration Max 1 | . . . . . . . . 1 Secondary Targets 5 | . . . . . 5 . . . Max Gunslinging Chain 1 | . . . . . 1 . . . Shots Hit Robots 104 | . . . 4 . 53 5 13 29 Core Hits 35 | . . . 1 . 17 3 4 10 Critical Hits 1 | . . . . . 1 . . . Critical Kills . | . . . . . . . . . Critical Parts Destroyed 1 | . . . . . 1 . . . Melee Attacks 16 | . . . . . . . . 16 Impact . | . . . . . . . . . Slashing 16 | . . . . . . . . 16 Piercing . | . . . . . . . . . Sneak Attacks . | . . . . . . . . . Combat Hostiles . | . . . . . . . . . Follow-up Attacks . | . . . . . . . . . Damage Inflicted 1780 | . . . 42 . 685 60 184 809 Guns 1243 | . . . 42 . 685 60 184 272 Cannons 144 | . . . . . . . . 144 Explosions . | . . . . . . . . . Melee 393 | . . . . . . . . 393 Ramming . | . . . . . . . . . Kinetic 1362 | . . . 17 . 685 60 184 416 Thermal 25 | . . . 25 . . . . . Explosive . | . . . . . . . . . Electromagnetic . | . . . . . . . . . Impact . | . . . . . . . . . Slashing 393 | . . . . . . . . 393 Piercing . | . . . . . . . . . Highest Corruption . | . . . . . . . . . Average Corruption . | . . . . . . . . . Corruption Purged . | . . . . . . . . . Overload Shots . | . . . . . . . . . Overflow Damage 44 | . . . . . . . . 44 Projectiles 19 | . . . . . . . . 19 Explosions . | . . . . . . . . . Melee 25 | . . . . . . . . 25 Knockbacks . | . . . . . . . . . Impact . | . . . . . . . . . Kinetic . | . . . . . . . . . Secondary . | . . . . . . . . . Self-Inflicted Damage . | . . . . . . . . . Shots . | . . . . . . . . . Rammed . | . . . . . . . . . Targets Rammed 1 | . . . . . . . 1 . Kicked 1 | . . . . . . . 1 . Crushed . | . . . . . . . . . Highest Temperature 585 | . . . 111 . 216 94 64 585 Average Temperature 133 | . . . 56 . 96 37 29 317 Received Heat Transfer 811 | . . . 9 . 184 . . 618 Effects 13 | . . . . . . . . 13 Shutdowns 2 | . . . . . . . . 2 Interference 2 | . . . . . . . . 2 Short Circuit 1 | . . . . . . . . 1 Damage (minor) 3 | . . . . . . . . 3 Damage (major) 4 | . . . . . . . . 4 Damage (core) 1 | . . . . . . . . 1 Siege Activations . | . . . . . . . . . Robots Corrupted . | . . . . . . . . . Combat Hostiles . | . . . . . . . . . Parts Fried . | . . . . . . . . . Impact Corruptions . | . . . . . . . . . Robots Melted . | . . . . . . . . . Combat Hostiles . | . . . . . . . . . Parts Melted 1 | . . . . . . 1 . . Heat Transferred 74 | . . . 74 . . . . . Parts Sabotaged . | . . . . . . . . . Parts Stolen . | . . . . . . . . . Parts Stripped . | . . . . . . . . . Power Chain Reactions . | . . . . . . . . . Missiles Intercepted . | . . . . . . . . . Alert | -11 -10 -10 -9 -9 -9 -9 -7 -7 ------- Run | Scr Mat Min Mat Sto Gar Rec Fac Low Peak Influence 1035 | . 15 5 72 29 449 239 1035 . Average Influence 428 | . 3 5 31 29 287 211 910 . Maximum Alert Level 3 | . . . . . 2 1 3 . Low Security (%) 41 | . . . . . . . . . Level 1 14 | . . . . . . . . . Level 2 6 | . . . . . . . . . Level 3 38 | . . . . . . . . . Level 4 . | . . . . . . . . . Level 5 . | . . . . . . . . . High Security . | . . . . . . . . . Max Security . | . . . . . . . . . Squads Dispatched 3 | . 1 . . . . . 2 . Investigation . | . . . . . . . . . Extermination 1 | . . . . . . . 1 . Reinforcement 2 | . 1 . . . . . 1 . Assault . | . . . . . . . . . Garrison . | . . . . . . . . . Intercept . | . . . . . . . . . Construction Impeded . | . . . . . . . . . Haulers Reinforced . | . . . . . . . . . Stealth | -11 -10 -10 -9 -9 -9 -9 -7 -7 --------- Run | Scr Mat Min Mat Sto Gar Rec Fac Low Distress Signals 1 | . . . . . . . 1 . Communications Jammed . | . . . . . . . . . Distress Signals . | . . . . . . . . . Times Spotted 54 | . 3 . 1 . 20 4 6 20 Peak Tracking Total 11 | . 3 . 1 . 6 2 2 11 Tactical Retreats 5 | . . . . . 1 . . 4 Traps | -11 -10 -10 -9 -9 -9 -9 -7 -7 ------- Run | Scr Mat Min Mat Sto Gar Rec Fac Low Traps Triggered 2 | . . . . . 2 . . . Indirectly . | . . . . . . . . . Trap Hack Attempts . | . . . . . . . . . Triggered . | . . . . . . . . . Disarmed . | . . . . . . . . . Reprogrammed . | . . . . . . . . . Reused . | . . . . . . . . . Traps Extracted . | . . . . . . . . . Installed . | . . . . . . . . . Triggered . | . . . . . . . . . Machines | -11 -10 -10 -9 -9 -9 -9 -7 -7 ---------- Run | Scr Mat Min Mat Sto Gar Rec Fac Low Machines Disabled 2 | . . . . . . . 2 . Max in Single Turn 1 | . . . . . . . 1 . Machines Sabotaged . | . . . . . . . . . Garrisons Compromised . | . . . . . . . . . Overloaded Fab Kills . | . . . . . . . . . Fab Network Shutdowns . | . . . . . . . . . Hacking | -11 -10 -10 -9 -9 -9 -9 -7 -7 --------- Run | Scr Mat Min Mat Sto Gar Rec Fac Low Machines Accessed 11 | . . . . 2 . 6 3 . Terminals 7 | . . . . 1 . 4 2 . Fabricators 1 | . . . . . . . 1 . Repair Stations . | . . . . . . . . . Recycling Units 2 | . . . . . . 2 . . Scanalyzers . | . . . . . . . . . Garrison Access 1 | . . . . 1 . . . . Total Hacks 18 | . . . . 5 . 9 4 . Successful 12 | . . . . 1 . 8 3 . Failed 6 | . . . . 4 . 1 1 . Catastrophic 2 | . . . . 1 . . 1 . Database Lockouts . | . . . . . . . . . Manual . | . . . . . . . . . Terminals 11 | . . . . 3 . 6 2 . Fabricators 2 | . . . . . . . 2 . Repair Stations . | . . . . . . . . . Recycling Units 3 | . . . . . . 3 . . Scanalyzers . | . . . . . . . . . Garrison Access 2 | . . . . 2 . . . . Terminal Hacks 6 | . . . . . . 5 1 . Record 2 | . . . . . . 1 1 . Part Schematic 1 | . . . . . . 1 . . Robot Schematic 1 | . . . . . . 1 . . Prototype ID Bank 1 | . . . . . . 1 . . Zone Layout 1 | . . . . . . 1 . . Fabricator Hacks 2 | . . . . . . . 2 . Load Schematic 1 | . . . . . . . 1 . Build 1 | . . . . . . . 1 . Repair Station Hacks . | . . . . . . . . . Recycling Unit Hacks 3 | . . . . . . 3 . . Report Inventory 2 | . . . . . . 2 . . Retrieve Components 1 | . . . . . . 1 . . Scanalyzer . | . . . . . . . . . Garrison Access Hacks 1 | . . . . 1 . . . . Unlock Access 1 | . . . . 1 . . . . Unauthorized Hacks . | . . . . . . . . . Terminals . | . . . . . . . . . Fabricators . | . . . . . . . . . Repair Stations . | . . . . . . . . . Recycling Units . | . . . . . . . . . Scanalyzers . | . . . . . . . . . Garrison Access . | . . . . . . . . . Data Cores Recovered . | . . . . . . . . . Used . | . . . . . . . . . Hacking Detections 6 | . . . . 2 . 3 1 . Full Trace Events . | . . . . . . . . . Feedback Events . | . . . . . . . . . Feedback Blocked . | . . . . . . . . . Robot Schematics Acquired 1 | . . . . . . 1 . . Robots Built 3 | . . . . . . . 3 . Matter 186 | . . . . . . . 186 . Time 99 | . . . . . . . 99 . Total Robot Build Rating 6 | . . . . . . . 6 . Part Schematics Acquired 1 | . . . . . . 1 . . Parts Built . | . . . . . . . . . Matter . | . . . . . . . . . Time . | . . . . . . . . . Total Part Build Rating . | . . . . . . . . . Parts Repaired . | . . . . . . . . . Time . | . . . . . . . . . Parts Recycled . | . . . . . . . . . Recycled Matter . | . . . . . . . . . Retrieved Matter . | . . . . . . . . . Retrieved Components 9 | . . . . . . 9 . . Parts Scanalyzed . | . . . . . . . . . Part Schematics Acquired . | . . . . . . . . . Parts Damaged . | . . . . . . . . . Bothacking | -11 -10 -10 -9 -9 -9 -9 -7 -7 ------------ Run | Scr Mat Min Mat Sto Gar Rec Fac Low Used RIF Installer 1 | . . . . . 1 . . . Robots Hacked . | . . . . . . . . . Non-combat . | . . . . . . . . . Combat . | . . . . . . . . . Robot Hacks Applied . | . . . . . . . . . Relay Couplers Released . | . . . . . . . . . Robots Rewired . | . . . . . . . . . Allies Hacked . | . . . . . . . . . Hacks Repelled . | . . . . . . . . . Allies | -11 -10 -10 -9 -9 -9 -9 -7 -7 -------- Run | Scr Mat Min Mat Sto Gar Rec Fac Low Total Allies 5 | . . 2 . . . . 3 . Largest Group 3 | . . 2 2 1 1 . 3 1 Highest-Rated Group 38 | . . 38 38 31 31 . 30 10 Highest-Rated Ally 31 | . . 31 31 31 31 . 10 10 Total Orders 2 | . . . . . . . 2 . GUARD 2 | . . . . . . . 2 . Ally Attacks 37 | . . . 3 . 22 . 12 . Total Damage 477 | . . . 62 . 209 . 206 . Kills 6 | . . . 2 . 3 . 1 . Allies Corrupted . | . . . . . . . . . Allies Melted . | . . . . . . . . . Intel | -11 -10 -10 -9 -9 -9 -9 -7 -7 ------- Run | Scr Mat Min Mat Sto Gar Rec Fac Low Robot Analysis Total . | . . . . . . . . . Derelict Logs Recovered 3 | . . 1 . . . . . 2 Drone Launches . | . . . . . . . . . Drone Recoveries . | . . . . . . . . . Exploration | -11 -10 -10 -9 -9 -9 -9 -7 -7 ------------- Run | Scr Mat Min Mat Sto Gar Rec Fac Low Turns Passed 3495 | 122 112 294 210 51 358 355 943 1050 Spaces Moved 2582 | 66 93 226 155 42 202 273 684 841 Core 140 | 14 . . . . . . . 126 Treads 6 | . . . . . . . . 6 Legs 2436 | 52 93 226 155 42 202 273 684 709 Wheels . | . . . . . . . . . Hover . | . . . . . . . . . Flight . | . . . . . . . . . Fastest Speed 50 | 50 120 120 120 120 120 120 120 50 Average Speed 117 | 140 120 120 120 120 120 120 120 111 Slowest Speed 550 | 150 150 120 120 120 120 120 120 550 Overloaded Moves . | . . . . . . . . . Propulsion Burnouts . | . . . . . . . . . Robots Hopped . | . . . . . . . . . Cave-ins Triggered . | . . . . . . . . . Exploration Rate (%) 34 | 4 15 55 13 7 50 59 13 92 Regions Visited 8 Branch Regions 4 Pre-discovered Areas 2 | . . 1 . . . . . 1 Known Exits Taken 1 | . . . . 1 . . . . Unknown Exits Taken 6 | 1 1 1 1 . . 1 1 . Scrap Searched 1 | . . . . . . . . 1 Spaces Dug . | . . . . . . . . . Terrain Destroyed 3 | . . . . . . . . 3 Melee . | . . . . . . . . . Projectile 3 | . . . . . . . . 3 AOE . | . . . . . . . . . Actions | -11 -10 -10 -9 -9 -9 -9 -7 -7 --------- Run | Scr Mat Min Mat Sto Gar Rec Fac Low Total 2899 | 95 93 249 174 42 257 288 796 905 Wait 144 | 15 . 23 . . . 6 83 17 Move 2574 | 65 92 225 154 42 200 272 683 841 Hop . | . . . . . . . . . Pick Up 33 | 10 . 1 5 . 5 1 8 3 Fast Attach 6 | . . . 4 . . . 2 . Attach 23 | 5 1 . 2 . . . 4 11 Detach 4 | . . . . . . . . 4 Swap 11 | . . . 2 . 3 1 4 1 Drop 19 | . . . 5 . 6 1 6 1 Fire 59 | . . . 2 . 34 7 5 11 Melee 16 | . . . . . . . . 16 Ram . | . . . . . . . . . Kick 1 | . . . . . . . 1 . Crush . | . . . . . . . . . Escape Stasis 9 | . . . . . 9 . . . Rewire . | . . . . . . . . . Trap . | . . . . . . . . . Miscellaneous . | . . . . . . . . . Route ------- -11/Scrapyard -10/Materials -10/Mines -9/Materials -9/Storage -9/Garrison -9/Recycling -7/Factory -7/Lower Caves (discovered 1 exit: *Low) History --------- Turn | Location | Event 24 | -11/Scrapyard | Discovered new exit (range 14) 123 | -11/Scrapyard | Entered Materials 163 | -10/Materials | Discovered new exit (range 14) 235 | -10/Materials | Entered Mines 245 | -10/Mines | Learned Materials interactive machine intel 318 | -10/Mines | Build established: Mutant 511 | -10/Mines | Discovered new exit (range 6) 512 | -10/Mines | Learned location of Storage (-9) 529 | -10/Mines | Entered Materials 529 | -9/Materials | Accompanied by 2 allies 529 | -9/Materials | Evolved 2 slots: Propulsion x1, Weapon x1 530 | -9/Materials | Loaded intel: 18 interactive machine locations 534 | -9/Materials | Led the pair of lost Derelicts to an unsafe place 700 | -9/Materials | Discovered new exit (range 5) 739 | -9/Materials | Entered Storage 739 | -9/Storage | Accompanied by 1 ally 790 | -9/Storage | Identified exit to Garrison 790 | -9/Storage | Entered Garrison 790 | -9/Garrison | Accompanied by 1 ally 880 | -9/Garrison | Triggered checkpoint 952 | -9/Garrison | Destroyed 8 combat bots 954 | -9/Garrison | Triggered checkpoint 1004 | -9/Garrison | Triggered checkpoint 1044 | -9/Garrison | Build established: Tank 1066 | -9/Garrison | Discovered new exit (range 8) 1085 | -9/Garrison | Installed Relay Interface Framework 1120 | -9/Garrison | Triggered checkpoint 1148 | -9/Garrison | Entered Recycling 1149 | -9/Recycling | Joined Derelict attack on 0b10 via Recycling 1177 | -9/Recycling | Spotter reported a threat 1177 | -9/Recycling | Spotter reported a threat 1177 | -9/Recycling | Spotter reported a threat 1179 | -9/Recycling | Spotter reported a threat 1182 | -9/Recycling | Spotter reported a threat 1183 | -9/Recycling | Spotter reported a threat 1183 | -9/Recycling | Spotter reported a threat 1235 | -9/Recycling | Spotter reported a threat 1236 | -9/Recycling | Spotter reported a threat 1238 | -9/Recycling | Spotter reported a threat 1251 | -9/Recycling | Spotter reported a threat 1276 | -9/Recycling | Spotter reported a threat 1289 | -9/Recycling | Spotter reported a threat 1304 | -9/Recycling | Spotter reported a threat 1327 | -9/Recycling | Spotter reported a threat 1327 | -9/Recycling | Spotter reported a threat 1378 | -9/Recycling | Spotter reported a threat 1378 | -9/Recycling | Spotter reported a threat 1378 | -9/Recycling | Spotter reported a threat 1378 | -9/Recycling | Spotter reported a threat 1431 | -9/Recycling | Spotter reported a threat 1435 | -9/Recycling | Spotter reported a threat 1453 | -9/Recycling | Spotter reported a threat 1454 | -9/Recycling | Discovered new exit (range 11) 1503 | -9/Recycling | Entered Factory 1503 | -7/Factory | Evolved 4 slots: Propulsion x2, Utility x1, Weapon x1 1520 | -7/Factory | 3 allies followed out of Recycling 1745 | -7/Factory | Discovered new exit (range 3) 1859 | -7/Factory | Build established: Scavenger-Gunner 1893 | -7/Factory | Fabricated B-36 Bruiser (x3) 2446 | -7/Factory | Entered Lower Caves 2446 | -7/Lower Caves | Accompanied by 1 ally 2467 | -7/Lower Caves | Identified exit to Lower Caves 2543 | -7/Lower Caves | Attracted the attention of an 0b10 base 2596 | -7/Lower Caves | Core integrity fell below 50% 2632 | -7/Lower Caves | Lost 17 parts (2p5n5u5w) 2687 | -7/Lower Caves | Core integrity fell below 20% 2857 | -7/Lower Caves | Build established: Mutant 2983 | -7/Lower Caves | Encountered a Warlord checkpoint 3471 | -7/Lower Caves | Attracted the attention of an 0b10 base 3496 | -7/Lower Caves | Destroyed by G-47 Trooper with Particle Gun Last Messages --------------- G-47 Trooper destroyed. Lgt. Nuclear Core fries itself beyond repair. Acquired Aluminum Leg. Aluminum Leg fries itself beyond repair. Destroyed Particle Gun. Acquired 52 matter. Slug penetrates Wall. Y-64 Sentinel destroyed. Acquired 64 matter. Acquired Mic. Fission Core. Acquired Imp. Treads. MB-TBO(M): "You haven't seen any Assembled, have you?" Acquired 27 matter. Acquired 43 matter. Acquired 5 matter. Penetrated by Slug. Critical hit. Aluminum Leg destroyed. S-27 Virus springs to life. Autogun severed. Map ----- +----------------------------------------------------+ | ## ##???# ##?????????????????????????? | | # # ####### #??????????????????????????? | | ## # ##??????????????????????????? | | ?## ## %# ##???????????????????????????? | | ??###### ## % ## #######????????????????????????? | | ???????###### ### ##???????????????????????? | | ????????????### ## %%% #???????????????????????? | | ??????????????## % ###???????????????????????? | | ???????????????## %% ##?????????????????????????? | | ????????????????#######??????????????????????????? | | ?????????????????????????????????????????????????? | | ?????????????????????????????????????????????????? | | ?????????????????????????????????????????????????? | | ?????????????????????????????????????????????????? | | ?????????????????????????????????????????????????? | | ?????????????????????????????????????????????????? | | #####????????????????????????????????????????????? | | #?????#########????????????####???###????????? | | ??????# #???????###### #### ########?? | | ??????## #????????# #?? | | #???##### #?????????# #?? | | #???# #?????????# #######//######?????? | | ##### #??????????# #????# ???????? | | ##??????????# #????# ""#????? | | ##?????######s #????#/#### "#????? | | ##????# @gY #???? "???? ""#????? | | " ###### s #???? ????? "#????? | | "" ### #???"" ?????? +????? | | "" ### #?#g #???"" $???????+???? | | "" ### ########?# #??"""$ ?????? +??? | | "" ### ##??##????# #???"" ????? /?? | | "" #?####### #???## #???? ???? "#?? | | #### #??## #???? "??? ""#?? | | " ## #?## #????#/#### "#? | | # ####### ###?# #????# % % ""#? ## | | " ###???## ###???### #????#[ %$ "? ## | | "" #?????# ##???????## ######%//"###### #? | | "" #?????# ########?## #?# | | "" #?????# ### "## | | #????## ### ## "## ###### | | #????# #### #?## ## ##?## | | #????# ##??# ### ### | | ##??## #??# | | #### ### ## | | # ## ###?## ### ### ### | | ### #????????# #?# #?### | | ??## ###??????# ## ##???# | | #### ##???? ## ##???# ### | | # #?? ####???# ##?? | | ##?# ###??????# ##??? | +----------------------------------------------------+ Best States ------------- Heat Dissipation 34 Energy Generation 12 Energy Capacity 265 Matter Stores 300 Matter Capacity 300 Sight Range 16 Terrain Scan Density 10 Armor Coverage 225 Resistance: KI 20 Propulsion Shielding 66 Weapon Cycling 15 Evasion (%) 50 Recoil Reduction 1 Kinecelleration 30 Item Schematics ----------------- Particle Gun | -9/Recycling | Hacked Robot Schematics ------------------ B-36 Bruiser | -9/Recycling | Hacked Fabricated ------------ B-36 Bruiser | x3 | -7/Factory Alien Tech Used ----------------- None Achievements -------------- My Command Is Your Wish Please Form A Line \\IAMDERELICT Challenges ------------ None Game ------ Seed NullNodeShotgun Manual? 0 Play Time 00:38:01 Cumulative 7.6 hours Start 2019.11.10 @ 11:35:57 End 2019.11.10 @ 12:13:01 Sessions 1 Manual Loads 0 Difficulty Rogue Special Mode None Game No. 15 Rogue 15 Adventurer 0 Explorer 0 Win Type - Total 0 Types 0/0/0/0/0/0/0 Lore% 13 Gallery% 15 Achievement% 13 Wizard Run 0 Options --------- ASCII 0 Keyboard 0 Movement Arrows Keybinds 0 Fullscreen 1 Font 20/SmallcapsGlow Map View 66x50 Tactical HUD 0 Map Filters NONE Filters NONE Steam 1 RUN: a50c5d2e-5888-4e3e-9ea3-2ed8ed126612